fUSD/lending_fUSD_20240116
["ID","MTS","AMOUNT","RATE_DAILY","PERIOD"]
[311825302,1705439447513,-150.0,0.00031743,2]
[311825303,1705439447523,-3439.230621,0.00031747,2]
[311825304,1705439447533,-203.41484713,0.00031758,2]
[311825305,1705439447544,-200.0,0.00031773,3]
[311825306,1705439447554,-764.1829097,0.00031789,2]
[311825307,1705439447565,-784.21601794,0.00031789,4]
[311825308,1705439447576,-939.95776854,0.00031789,4]
[311825309,1705439447587,-155.0,0.0003179,4]
[311825310,1705439447597,-155.0,0.0003179,4]
[311825311,1705439447607,-157.23213545,0.0003179,4]
[311825312,1705439447618,-258.85887909,0.0003179,4]
[311825313,1705439447628,-176.90040225,0.0003179,4]
[311825314,1705439447639,-476.29501779,0.0003179,4]
[311825315,1705439447649,-265.22972054,0.0003179,4]
[311825316,1705439447659,-4308.25627475,0.0003179,4]
[311825317,1705439447668,-155.97034652,0.0003179,4]
[311825318,1705439447678,-400.25276388,0.0003179,4]
[311825319,1705439447687,-2087.18842643,0.00031791,4]
[311825320,1705439447697,-344.05542825,0.00031791,4]
[311825321,1705439447707,-253.2270894,0.00031791,4]
[311825322,1705439447716,-155.0,0.00031791,4]
[311825323,1705439447725,-235.19352569,0.00031792,4]
[311825324,1705439447735,-158.08168835,0.00031792,4]
[311825325,1705439447744,-496.06537996,0.00031792,4]
[311825326,1705439447753,-155.0,0.00031792,4]
[311825327,1705439447763,-257.41602689,0.00031792,4]
[311825328,1705439447772,-367.80860718,0.00031792,2]
[311825329,1705439447782,-254.11163985,0.00031792,4]
[311825330,1705439447792,-300.0,0.00031795,2]
[311825331,1705439447803,-300.0,0.00031795,2]
[311825332,1705439447813,-300.0,0.00031795,2]
[311825333,1705439447822,-300.0,0.00031795,2]
[311825334,1705439447832,-300.0,0.00031795,2]
[311825335,1705439447842,-300.0,0.00031795,2]
[311825336,1705439447853,-300.0,0.00031795,2]
[311825337,1705439448254,-300.0,0.00031795,2]
[311825338,1705439448264,-300.0,0.00031795,2]
[311825339,1705439448273,-300.0,0.00031795,2]
[311825340,1705439448285,-300.0,0.00031795,2]
[311825341,1705439448295,-300.0,0.00031795,2]
[311825342,1705439448305,-300.0,0.00031795,2]
[311825343,1705439448314,-300.0,0.00031795,2]
[311825344,1705439448324,-189.24943045,0.00031795,2]
[311825345,1705439448333,-720.47,0.00031795,2]
[311825346,1705439448343,-155.0,0.00031797,4]
[311825347,1705439448352,-334.58890798,0.00031797,4]
[311825348,1705439448362,-2137.87268645,0.00031797,4]
[311825349,1705439448371,-482.21308846,0.00031797,4]
[311825350,1705439448381,-24327.1934238,0.00031797,4]
[311825351,1705439448391,-196.63396927,0.00031798,4]
[311825352,1705439448400,-151.0,0.000318,7]
[311825353,1705439448411,-151.0,0.000318,7]
[311825354,1705439448420,-151.0,0.000318,7]
[311825355,1705439448431,-318.926709,0.000318,7]
[311825356,1705439448441,-318.926709,0.000318,7]
[311825357,1705439448451,-2007.96,0.000318,2]
[311825358,1705439448461,-293989.844297,0.000318,2]
[311825359,1705439448472,-275.5,0.000318,2]
[311825360,1705439448481,-314.8,0.000318,2]
[311825361,1705439448491,-1000.0,0.000318,2]
[311825362,1705439448500,-150.0,0.00031816,2]
[311825363,1705439448511,-806.83,0.00031828,2]
[311825364,1705439448522,-150.0,0.00031836,2]
[311825365,1705439448533,-300.0,0.00031845,2]
[311825366,1705439448543,-1076.03185236,0.00031845,2]
[311825367,1705439448553,-300.0,0.00031852,2]
[311825368,1705439448564,-150.0,0.00031857,2]
[311825369,1705439448575,-150.0,0.00031858,2]
[311825370,1705439448586,-150.0,0.00031876,2]
[311825371,1705439448597,-800.0,0.0003189,5]
[311825372,1705439448608,-300.0,0.00031891,2]
[311825373,1705439448618,-3439.230621,0.00031908,2]
[311825374,1705439448629,-354.53,0.0003191,2]
[311825375,1705439448638,-150.0,0.00031919,2]
[311825376,1705439448647,-300.0,0.00031919,2]
[311825377,1705439448657,-300.0,0.00031922,2]
[311825378,1705439448667,-150.0,0.00031925,2]
[311825379,1705439448677,-1500.0,0.00031928,2]
[311825380,1705439448688,-150.0,0.0003193,2]
[311825381,1705439448698,-1500.0,0.00031939,2]
[311825382,1705439448708,-682.2,0.0003194,2]
[311825383,1705439448720,-300.0,0.00031943,2]
[311825384,1705439448730,-150.0,0.00031951,2]
[311825385,1705439448740,-150.0,0.00031962,2]
[311825386,1705439448750,-153.84,0.00031963,2]
[311825387,1705439448760,-150.0,0.00031964,2]
[311825388,1705439448770,-302.48552543,0.00031965,2]
[311825389,1705439448781,-150.0,0.00031992,2]
[311825390,1705439448790,-150.0,0.00031994,2]
[311825391,1705439448799,-549.77676393,0.00031999,4]
[311825392,1705439448808,-100000.0,0.00032,2]
[311825393,1705439448818,-151.0,0.00032,7]
[311825394,1705439448827,-151.0,0.00032,7]
[311825395,1705439448837,-151.0,0.00032,7]
[311825396,1705439448846,-151.0,0.00032,7]
[311825397,1705439448855,-151.0,0.00032,7]
[311825398,1705439448864,-151.0,0.00032,7]
[311825399,1705439448873,-217.776367,0.00032,7]
[311825400,1705439448883,-297.7852918,0.00032,4]
[311825401,1705439448892,-13066.62474655,0.00032,4]
[311825402,1705439448902,-343.0,0.00032,2]
[311825403,1705439448912,-2692.00973911,0.00032,5]
[311825404,1705439448921,-6843.67382476,0.00032005,2]
[311825405,1705439448931,-1008.954,0.00032006,2]
[311825406,1705439448940,-291.387,0.00032006,2]
[311825407,1705439448949,-150.0,0.00032028,2]
[311825408,1705439448959,-300.0,0.00032036,2]
[311825409,1705439448969,-150.0,0.00032039,2]
[311825410,1705439448979,-387.7407565,0.00032056,2]
[311825411,1705439448989,-300.0,0.00032059,2]
[311825412,1705439448998,-150.0,0.00032061,2]
[311825413,1705439449008,-300.0,0.00032062,2]
[311825414,1705439449017,-3439.230621,0.00032068,2]
[311825415,1705439449026,-150.0,0.00032069,2]
[311825416,1705439449035,-150.0,0.00032074,2]
[311825417,1705439449045,-150.0,0.00032091,2]
[311825418,1705439449054,-150.0,0.00032097,2]
[311825419,1705439449063,-150.0,0.00032117,2]
[311825420,1705439449073,-150.0,0.0003212,2]
[311825421,1705439449082,-150.0,0.00032123,2]
[311825422,1705439449091,-150.0,0.00032125,2]
[311825423,1705439449101,-1500.0,0.00032137,2]
[311825424,1705439449110,-150.0,0.00032138,2]
[311825425,1705439449119,-3000.0,0.0003217,2]
[311825426,1705439449129,-150.0,0.00032172,2]
[311825427,1705439449139,-150.0,0.00032181,2]
[311825428,1705439449149,-150.0,0.00032193,2]
[311825429,1705439449160,-300.0,0.00032221,2]
[311825430,1705439449170,-252.99454732,0.00032226,2]
[311825431,1705439449179,-3439.230621,0.00032229,2]
[311825432,1705439449190,-800.0,0.00032234,5]
[311825433,1705439449200,-150.0,0.00032238,2]
[311825434,1705439449210,-150.0,0.00032289,2]
[311825435,1705439449220,-150.0,0.00032308,2]
[311825436,1705439449230,-150.0,0.00032319,2]
[311825437,1705439449239,-150.0,0.00032321,2]
[311825438,1705439449249,-150.0,0.00032347,2]
[311825439,1705439449258,-204.0,0.0003235,2]
[311825440,1705439449268,-201.0,0.0003235,2]
[311825441,1705439449278,-150.0,0.00032353,2]
[311825442,1705439449288,-300.0,0.00032354,2]
[311825443,1705439449298,-150.0,0.00032354,2]
[311825444,1705439449308,-1230.57568454,0.00032369,2]
[311825445,1705439449317,-150.0,0.00032376,2]
[311825446,1705439449326,-150.0,0.00032381,2]
[311825447,1705439449336,-3439.230621,0.0003239,2]
[311825448,1705439449345,-150.0,0.00032392,2]
[311825449,1705439449355,-150.0,0.00032392,2]
[311825450,1705439449365,-5456.23,0.000324,2]
[311825451,1705439449374,-150909.85,0.000324,2]
[311825452,1705439449384,-52333.78,0.000324,2]
[311825453,1705439449393,-60841.21,0.000324,2]
[311825454,1705439449403,-19966.14,0.000324,2]
[311825455,1705439449413,-2000.0,0.000324,2]
[311825456,1705439449422,-2000.0,0.000324,2]
[311825457,1705439449431,-2000.0,0.000324,2]
[311825458,1705439449441,-2000.0,0.000324,2]
[311825459,1705439449451,-150.0,0.000324,4]
[311825460,1705439449460,-346.771538,0.000324,2]
[311825461,1705439449470,-150.0,0.000324,5]
[311825462,1705439449480,-3000.0,0.000324,2]
[311825463,1705439449489,-946.190449,0.000324,2]
[311825464,1705439449499,-200.0,0.000324,2]
[311825465,1705439449509,-300.0,0.000324,5]
[311825466,1705439449519,-1500.0,0.00032416,2]
[311825467,1705439449528,-150.0,0.00032425,2]
[311825468,1705439449538,-150.0,0.00032442,2]
[311825469,1705439449549,-150.0,0.00032452,2]
[311825470,1705439449561,-31604.425188,0.00032463,2]
[311825471,1705439449572,-329.17,0.00032467,2]
[311825472,1705439449582,-339.48,0.00032467,2]
[311825473,1705439449592,-822.91,0.00032467,2]
[311825474,1705439449601,-150.0,0.00032467,2]
[311825475,1705439449611,-150.0,0.00032471,2]
[311825476,1705439449621,-229.58564176,0.00032473,2]
[311825477,1705439449631,-150.0,0.00032479,2]
[311825478,1705439449641,-300.0,0.00032479,2]
[311825479,1705439449651,-3295.05728793,0.00032494,2]
[311825480,1705439449661,-51419.21407101,0.00032494,2]
[311825481,1705439449671,-150.01,0.00032494,2]
[311825482,1705439449682,-4331.36678219,0.00032494,2]
[311825483,1705439449692,-1835.35886844,0.00032494,2]
[311825484,1705439449702,-7473.60443344,0.00032494,2]
[311825485,1705439449711,-4718.14201091,0.00032494,2]
[311825486,1705439449721,-200.0,0.00032495,2]
[311825487,1705439449732,-1047.0,0.000325,7]
[311825488,1705439449743,-496.5335,0.000325,2]
[311825489,1705439449753,-1000.0,0.000325,2]
[311825490,1705439449763,-2494.7881,0.000325,2]
[311825491,1705439449773,-142896.2483294,0.00032541,2]
[311825492,1705439449784,-8390.4837529,0.00032541,2]
[311825493,1705439449794,-4532.9349267,0.00032541,2]
[311825494,1705439449804,-3000.0,0.0003255,2]
[311825495,1705439449814,-3439.230621,0.00032551,2]
[311825496,1705439449824,-1575.47459591,0.00032563,4]
[311825497,1705439449834,-205.0,0.00032664,8]
[311825498,1705439449844,-157.89,0.000327,2]
[311825499,1705439449855,-157.89,0.000327,2]
[311825500,1705439449866,-3439.230621,0.00032712,2]
[311825501,1705439449878,-314.8,0.0003273,2]
[311825502,1705439449888,-1000.0,0.0003279,7]
[311825503,1705439449899,-150.0,0.00032795,2]
[311825504,1705439449910,-204.0,0.000328,2]
[311825505,1705439449919,-276.992108,0.000328,2]
[311825506,1705439449930,-576659.71,0.00032827,2]
[311825507,1705439449940,-11592.88,0.00032827,2]
[311825508,1705439449950,-40825.18,0.00032827,2]
[311825509,1705439449960,-63852.15,0.00032827,2]
[311825510,1705439449971,-13275.16,0.00032827,2]
[311825511,1705439449982,-2007.96,0.0003283,2]
[311825512,1705439449993,-534.99,0.00032842,2]
[311825513,1705439450003,-57621.79,0.0003285,2]
[311825514,1705439450012,-32936.43,0.0003285,2]
[311825515,1705439450021,-10829.61,0.0003285,2]
[311825516,1705439450030,-108507.99,0.0003285,2]
[311825517,1705439450040,-5000.0,0.0003285,2]
[311825518,1705439450049,-23683.73,0.0003285,2]
[311825519,1705439450059,-3439.230621,0.00032873,2]
[311825520,1705439450069,-151.0,0.00032874,7]
[311825521,1705439450079,-200.21195999,0.00032874,7]
[311825522,1705439450089,-318.926709,0.00032874,7]
[311825523,1705439450099,-318.926709,0.00032874,7]
[311825524,1705439450108,-390.6890791,0.00032874,4]
[311825525,1705439450118,-2900.08197683,0.00032874,4]
[311825526,1705439450127,-2612.76863363,0.00032874,2]
[311825527,1705439450137,-241.80971217,0.00032874,2]
[311825528,1705439450147,-441.01028074,0.00032874,4]
[311825529,1705439450158,-317.07020554,0.00032874,4]
[311825530,1705439450168,-188.95625647,0.00032874,4]
[311825531,1705439450179,-156.03028787,0.00032874,4]
[311825532,1705439450189,-447.65858949,0.00032874,10]
[311825533,1705439450198,-160.3189589,0.00032874,4]
[311825534,1705439450208,-1169.08334683,0.00032874,4]
[311825535,1705439450218,-2143.98939105,0.00032874,4]
[311825536,1705439450228,-333.79010136,0.00032874,4]
[311825537,1705439450238,-300.0,0.00032875,2]
[311825538,1705439450248,-300.0,0.00032875,2]
[311825539,1705439450257,-151.0,0.00032876,7]
[311825540,1705439450268,-151.0,0.00032876,7]
[311825541,1705439450278,-151.0,0.00032876,7]
[311825542,1705439450288,-151.0,0.00032876,7]
[311825543,1705439450297,-151.0,0.00032876,7]
[311825544,1705439450307,-151.0,0.00032876,7]
[311825545,1705439450317,-151.0,0.00032876,7]
[311825546,1705439450327,-283790.99,0.00032876,4]
[311825547,1705439450336,-151.0,0.00032876,7]
[311825548,1705439450345,-151.0,0.00032876,7]
[311825549,1705439450355,-151.0,0.00032876,7]
[311825550,1705439450365,-151.0,0.00032876,7]
[311825551,1705439450375,-151.0,0.00032876,7]
[311825552,1705439450385,-151.0,0.00032876,7]
[311825553,1705439450396,-151.0,0.00032876,7]
[311825554,1705439450406,-151.0,0.00032876,7]
[311825555,1705439450415,-151.0,0.00032876,7]
[311825556,1705439450424,-151.0,0.00032876,7]
[311825557,1705439450433,-151.0,0.00032876,7]
[311825558,1705439450443,-151.0,0.00032876,7]
[311825559,1705439450452,-151.0,0.00032876,7]
[311825560,1705439450461,-151.0,0.00032876,7]
[311825561,1705439450471,-318.926709,0.00032876,7]
[311825562,1705439450481,-318.926709,0.00032876,7]
[311825563,1705439450491,-318.926709,0.00032876,7]
[311825564,1705439450501,-318.926709,0.00032876,7]
[311825565,1705439450510,-318.926709,0.00032876,7]
[311825566,1705439450520,-318.926709,0.00032876,7]
[311825567,1705439450529,-318.926709,0.00032876,7]
[311825568,1705439450538,-318.926709,0.00032876,7]
[311825569,1705439450548,-151.0,0.00032876,7]
[311825570,1705439450557,-151.0,0.00032876,7]
[311825571,1705439450567,-151.0,0.00032876,7]
[311825572,1705439450577,-151.0,0.00032876,7]
[311825573,1705439450586,-155.0,0.00032876,4]
[311825574,1705439450595,-155.0,0.00032876,4]
[311825575,1705439450605,-500.0,0.00032876,2]
[311825576,1705439450614,-2000.0,0.00032876,2]
[311825577,1705439450712,-614.08258031,0.00032876,2]
[311825578,1705439450721,-598.92,0.00032876,2]
[311825579,1705439450731,-500.0,0.00032876,2]
[311825580,1705439450740,-524.04815754,0.00032876,2]
[311825581,1705439450749,-500.0,0.00032876,2]
[311825582,1705439450758,-500.0,0.00032876,2]
[311825583,1705439450768,-500.0,0.00032876,2]
[311825584,1705439450777,-500.0,0.00032876,2]
[311825585,1705439450786,-500.0,0.00032876,2]
[311825586,1705439450796,-511.26527538,0.00032876,2]
[311825587,1705439450805,-500.0,0.00032876,2]
[311825588,1705439450814,-500.0,0.00032876,2]
[311825589,1705439450823,-435.42482296,0.00032876,2]
[311825590,1705439450832,-500.0,0.00032876,2]
[311825591,1705439450842,-500.0,0.00032876,2]
[311825592,1705439450851,-573.55389738,0.00032876,2]
[311825593,1705439450861,-500.0,0.00032876,2]
[311825594,1705439450870,-500.0,0.00032876,2]
[311825595,1705439450880,-500.0,0.00032876,2]
[311825596,1705439450889,-500.0,0.00032876,2]
[311825597,1705439450898,-500.0,0.00032876,2]
[311825598,1705439450909,-180.32794819,0.00032876,2]
[311825599,1705439450918,-500.0,0.00032876,2]
[311825600,1705439450927,-500.0,0.00032876,2]
[311825601,1705439450936,-500.0,0.00032876,2]
[311825602,1705439450945,-500.0,0.00032876,2]
[311825603,1705439450955,-500.0,0.00032876,2]
[311825604,1705439450964,-500.0,0.00032876,2]
[311825605,1705439450974,-500.0,0.00032876,2]
[311825606,1705439450983,-500.0,0.00032876,2]
[311825607,1705439450993,-506.82929835,0.00032876,2]
[311825608,1705439451002,-501.52360444,0.00032876,2]
[311825609,1705439451012,-500.0,0.00032876,2]
[311825610,1705439451021,-501.83725017,0.00032876,2]
[311825611,1705439451030,-500.0,0.00032876,2]
[311825612,1705439451039,-555.52513661,0.00032876,2]
[311825613,1705439451049,-500.0,0.00032876,2]
[311825614,1705439451058,-500.0,0.00032876,2]
[311825615,1705439451067,-500.0,0.00032876,2]
[311825616,1705439451077,-3550.08652229,0.00032876,3]
[311825617,1705439451086,-501.18354423,0.00032876,2]
[311825618,1705439451096,-502.62104931,0.00032876,2]
[311825619,1705439451105,-502.23720419,0.00032876,2]
[311825620,1705439451114,-500.0,0.00032876,2]
[311825621,1705439451123,-502.57169523,0.00032876,2]
[311825622,1705439451132,-316.10452306,0.00032876,2]
[311825623,1705439451142,-500.0,0.00032876,2]
[311825624,1705439451152,-563.61422398,0.00032876,2]
[311825625,1705439451164,-500.0,0.00032876,2]
[311825626,1705439451174,-500.0,0.00032876,2]
[311825627,1705439451184,-500.0,0.00032876,2]
[311825628,1705439451194,-598.63801308,0.00032876,2]
[311825629,1705439451204,-500.0,0.00032876,2]
[311825630,1705439451213,-500.0,0.00032876,2]
[311825631,1705439451224,-500.60573589,0.00032876,2]
[311825632,1705439451234,-500.0,0.00032876,2]
[311825633,1705439451245,-500.0,0.00032876,2]
[311825634,1705439451254,-500.0,0.00032876,2]
[311825635,1705439451264,-500.0,0.00032876,2]
[311825636,1705439451274,-202.01161009,0.00032876,2]
[311825637,1705439451284,-500.0,0.00032876,2]
[311825638,1705439451293,-500.0,0.00032876,2]
[311825639,1705439451302,-500.0,0.00032876,2]
[311825640,1705439451312,-500.0,0.00032876,2]
[311825641,1705439451322,-500.0,0.00032876,2]
[311825642,1705439451331,-500.0,0.00032876,2]
[311825643,1705439451341,-500.0,0.00032876,2]
[311825644,1705439451350,-530.6,0.00032876,2]
[311825645,1705439451360,-500.0,0.00032876,2]
[311825646,1705439451370,-500.0,0.00032876,2]
[311825647,1705439451380,-565.2240664,0.00032876,2]
[311825648,1705439451390,-682.29,0.00032876,2]
[311825649,1705439451399,-567.28,0.00032876,2]
[311825650,1705439451408,-566.64773622,0.00032876,2]
[311825651,1705439451418,-511.16780529,0.00032876,2]
[311825652,1705439451428,-500.0,0.00032876,2]
[311825653,1705439451437,-500.0,0.00032876,2]
[311825654,1705439451447,-500.0,0.00032876,2]
[311825655,1705439451457,-792.6,0.00032876,2]
[311825656,1705439451466,-500.0,0.00032876,2]
[311825657,1705439451476,-501.13534319,0.00032876,2]
[311825658,1705439451485,-2100.99,0.00032876,2]
[311825659,1705439451494,-500.0,0.00032876,2]
[311825660,1705439451503,-1617.8,0.00032876,2]
[311825661,1705439451513,-500.0,0.00032876,2]
[311825662,1705439451522,-950.3,0.00032876,2]
[311825663,1705439451531,-500.0,0.00032876,2]
[311825664,1705439451540,-500.0,0.00032876,2]
[311825665,1705439451549,-500.0,0.00032876,2]
[311825666,1705439451559,-885.26,0.00032876,7]
[311825667,1705439451568,-748.65,0.00032876,2]
[311825668,1705439451578,-500.0,0.00032876,2]
[311825669,1705439451587,-754.6,0.00032876,2]
[311825670,1705439451597,-500.0,0.00032876,2]
[311825671,1705439451606,-500.0,0.00032876,2]
[311825672,1705439451616,-501.52339775,0.00032876,2]
[311825673,1705439451626,-509.00376747,0.00032876,2]
[311825674,1705439451635,-500.0,0.00032876,2]
[311825675,1705439451644,-500.0,0.00032876,2]
[311825676,1705439451654,-500.0,0.00032876,2]
[311825677,1705439451663,-500.0,0.00032876,2]
[311825678,1705439451672,-500.0,0.00032876,2]
[311825679,1705439451682,-500.0,0.00032876,2]
[311825680,1705439451691,-500.74253181,0.00032876,2]
[311825681,1705439451700,-503.71449715,0.00032876,2]
[311825682,1705439451709,-500.90561596,0.00032876,2]
[311825683,1705439451718,-500.0,0.00032876,2]
[311825684,1705439451728,-935.51,0.00032876,2]
[311825685,1705439451738,-500.0,0.00032876,2]
[311825686,1705439451746,-302.2694063,0.00032876,2]
[311825687,1705439451756,-500.0,0.00032876,2]
[311825688,1705439451765,-500.0,0.00032876,2]
[311825689,1705439451774,-500.0,0.00032876,2]
[311825690,1705439451783,-493.45617791,0.00032876,2]
[311825691,1705439451793,-500.0,0.00032876,2]
[311825692,1705439451802,-823.96,0.00032876,2]
[311825693,1705439451811,-500.0,0.00032876,2]
[311825694,1705439451820,-500.0,0.00032876,2]
[311825695,1705439451830,-757.43,0.00032876,2]
[311825696,1705439451841,-545.5,0.00032876,2]
[311825697,1705439451852,-500.0,0.00032876,2]
[311825698,1705439451862,-500.0,0.00032876,2]
[311825699,1705439451873,-500.0,0.00032876,2]
[311825700,1705439451883,-500.0,0.00032876,2]
[311825701,1705439451894,-549.73416386,0.00032876,2]
[311825702,1705439451905,-500.0,0.00032876,2]
[311825703,1705439451915,-682.57,0.00032876,2]
[311825704,1705439451925,-500.0,0.00032876,2]
[311825705,1705439451936,-447.84779422,0.00032876,2]
[311825706,1705439451946,-500.0,0.00032876,2]
[311825707,1705439451958,-491.42675218,0.00032876,2]
[311825708,1705439451969,-502.40001348,0.00032876,2]
[311825709,1705439451979,-500.0,0.00032876,2]
[311825710,1705439451990,-500.0,0.00032876,2]
[311825711,1705439452000,-500.0,0.00032876,2]
[311825712,1705439452010,-500.0,0.00032876,2]
[311825713,1705439452021,-500.0,0.00032876,2]
[311825714,1705439452032,-500.0,0.00032876,2]
[311825715,1705439452042,-514.516251,0.00032876,2]
[311825716,1705439452054,-501.05041195,0.00032876,2]
[311825717,1705439452064,-500.0,0.00032876,2]
[311825718,1705439452075,-500.0,0.00032876,2]
[311825719,1705439452084,-500.0,0.00032876,2]
[311825720,1705439452094,-597.73,0.00032876,2]
[311825721,1705439452103,-839.1,0.00032876,2]
[311825722,1705439452112,-500.0,0.00032876,2]
[311825723,1705439452121,-500.0,0.00032876,2]
[311825724,1705439452130,-501.25575907,0.00032876,2]
[311825725,1705439452139,-655.08,0.00032876,2]
[311825726,1705439452149,-500.45562283,0.00032876,2]
[311825727,1705439452160,-515.97385508,0.00032876,2]
[311825728,1705439452169,-500.0,0.00032876,2]
[311825729,1705439452179,-501.10710071,0.00032876,2]
[311825730,1705439452188,-500.0,0.00032876,2]
[311825731,1705439452198,-1000.0,0.00032876,2]
[311825732,1705439452207,-500.0,0.00032876,2]
[311825733,1705439452216,-500.0,0.00032876,2]
[311825734,1705439452225,-527.51160691,0.00032876,2]
[311825735,1705439452236,-500.0,0.00032876,2]
[311825736,1705439452245,-500.0,0.00032876,20]
[311825737,1705439452254,-1000.0,0.00032876,2]
[311825738,1705439452264,-500.0,0.00032876,2]
[311825739,1705439452274,-500.0,0.00032876,2]
[311825740,1705439452283,-221.26130736,0.00032876,2]
[311825741,1705439452292,-500.0,0.00032876,2]
[311825742,1705439452302,-500.0,0.00032876,2]
[311825743,1705439452311,-636.42,0.00032876,2]
[311825744,1705439452320,-623.56620307,0.00032876,2]
[311825745,1705439452329,-500.0,0.00032876,2]
[311825746,1705439452339,-500.0,0.00032876,2]
[311825747,1705439452348,-500.0,0.00032876,2]
[311825748,1705439452358,-500.0,0.00032876,2]
[311825749,1705439452367,-500.32597962,0.00032876,2]
[311825750,1705439452377,-522.51911496,0.00032876,2]
[311825751,1705439452386,-500.0,0.00032876,2]
[311825752,1705439452396,-500.0,0.00032876,2]
[311825753,1705439452405,-500.0,0.00032876,2]
[311825754,1705439452414,-500.0,0.00032876,2]
[311825755,1705439452423,-500.0,0.00032876,2]
[311825756,1705439452433,-500.0,0.00032876,2]
[311825757,1705439452442,-500.0,0.00032876,2]
[311825758,1705439452451,-500.0,0.00032876,2]
[311825759,1705439452460,-501.70719652,0.00032876,2]
[311825760,1705439452469,-500.0,0.00032876,2]
[311825761,1705439452478,-500.0,0.00032876,2]
[311825762,1705439452487,-500.0,0.00032876,2]
[311825763,1705439452496,-500.0,0.00032876,2]
[311825764,1705439452505,-500.0,0.00032876,2]
[311825765,1705439452514,-1018.37,0.00032876,2]
[311825766,1705439452523,-207.23055153,0.00032876,2]
[311825767,1705439452532,-638.48134989,0.00032876,2]
[311825768,1705439452541,-500.0,0.00032876,2]
[311825769,1705439452551,-500.0,0.00032876,2]
[311825770,1705439452560,-500.0,0.00032876,2]
[311825771,1705439452569,-500.0,0.00032876,2]
[311825772,1705439452578,-500.0,0.00032876,2]
[311825773,1705439452587,-500.0,0.00032876,2]
[311825774,1705439452596,-500.0,0.00032876,2]
[311825775,1705439452605,-500.0,0.00032876,2]
[311825776,1705439452614,-500.0,0.00032876,2]
[311825777,1705439452623,-500.0,0.00032876,2]
[311825778,1705439452632,-500.0,0.00032876,2]
[311825779,1705439452641,-500.0,0.00032876,2]
[311825780,1705439452650,-500.0,0.00032876,2]
[311825781,1705439452658,-500.0,0.00032876,2]
[311825782,1705439452667,-500.0,0.00032876,2]
[311825783,1705439452678,-500.0,0.00032876,2]
[311825784,1705439452687,-500.0,0.00032876,2]
[311825785,1705439452695,-500.0,0.00032876,2]
[311825786,1705439452704,-500.0,0.00032876,2]
[311825787,1705439452713,-500.0,0.00032876,2]
[311825788,1705439452722,-500.0,0.00032876,2]
[311825789,1705439452731,-500.0,0.00032876,2]
[311825790,1705439452740,-500.0,0.00032876,2]
[311825791,1705439452749,-518.24244666,0.00032876,2]
[311825792,1705439452757,-500.0,0.00032876,2]
[311825793,1705439452766,-454.92173886,0.00032876,2]
[311825794,1705439452775,-500.0,0.00032876,2]
[311825795,1705439452784,-1032.64,0.00032876,2]
[311825796,1705439452793,-500.0,0.00032876,2]
[311825797,1705439452802,-500.0,0.00032876,2]
[311825798,1705439452811,-500.0,0.00032876,2]
[311825799,1705439452820,-500.0,0.00032876,2]
[311825800,1705439452830,-500.0,0.00032876,2]
[311825801,1705439452839,-500.0,0.00032876,2]